bitfinex-derivatives/quotes_ETHF0:USTF0_20241007
["timestamp","ask_amount","ask_price","bid_price","bid_amount"]
[1728308863922,4.21427,2484.3,2483.5,0.40271]
[1728308863923,2.1209,2483.9,2483.5,0.40271]
[1728308864121,2.1209,2483.9,2483.4,3.2078]
[1728308864514,2.1209,2483.7,2483.4,3.2078]
[1728308865728,2.1209,2483.5,2483.4,3.2078]
[1728308865926,2.1209,2483.8,2483.4,3.2078]
[1728308866125,0.40266,2483.9,2483.4,3.2078]
[1728308866329,2.1209,2483.7,2483.4,3.2078]
[1728308866526,4.21428,2484.3,2483.4,3.2078]
[1728308866527,2.1209,2483.6,2483.4,3.2078]
[1728308866719,2.1209,2483.5,2483.4,3.2078]
[1728308866923,2.1209,2483.7,2483.4,3.61052]
[1728308867329,2.1209,2483.7,2483.4,3.2078]
[1728308867529,2.1209,2483.6,2483.4,3.61053]
[1728308867734,2.1209,2483.7,2483.5,0.40271]
[1728308868038,0.71047019,2483.8,2483.6,0.40269]
[1728308868342,0.71047019,2483.8,2483.4,7.0878]
[1728308868834,3.2078,2484.3,2483.5,0.4027]
[1728308868835,0.40263,2484.0,2483.5,0.4027]
[1728308869036,0.71047019,2483.9,2483.5,0.4027]
[1728308869240,0.71047019,2483.9,2483.5,0.40271]
[1728308869539,0.4097,2484.8,2483.8,3.2078]
[1728308869736,0.4097,2484.8,2484.3,3.2078]
[1728308869737,0.71047019,2484.6,2484.3,3.2078]
[1728308870040,1.11304019,2484.4,2484.3,3.2078]
[1728308870630,1.11304019,2484.4,2483.6,0.3993]
[1728308870631,3.91827019,2484.4,2483.7,3.2078]
[1728308870836,0.40259,2484.3,2484.0,3.2078]
[1728308871031,3.2078,2484.4,2484.0,3.2078]
[1728308871032,3.61038,2484.4,2484.0,3.2078]
[1728308871235,3.61038,2484.4,2484.2,0.40259]
[1728308871236,0.71047019,2484.3,2484.2,0.40259]
[1728308871539,0.71047019,2484.3,2484.0,3.2078]
[1728308871936,0.71047019,2484.2,2484.0,3.61043]
[1728308872132,1.11307019,2484.2,2484.0,3.2078]
[1728308872336,0.71047019,2484.2,2484.0,3.61042]
[1728308872532,1.11309019,2484.1,2484.0,3.2078]
[1728308872742,0.71047019,2484.1,2483.7,3.2078]
[1728308872944,0.71047019,2483.7,2483.3,3.2078]
[1728308873238,0.71047019,2483.4,2483.3,3.2078]
[1728308873537,0.71047019,2483.4,2483.3,3.61055]
[1728308873941,0.71047019,2483.4,2482.7,3.88]
[1728308874149,0.40285,2482.7,2482.4,0.40289]
[1728308874343,0.40285,2482.7,2482.6,3.2078]
[1728308874344,0.40284,2482.7,2482.6,3.2078]
[1728308874641,1.00703,2482.9,2482.6,3.2078]
[1728308874642,0.40282,2482.9,2482.6,3.2078]
[1728308874848,0.71047019,2482.7,2482.6,3.2078]
[1728308875041,0.40287,2482.6,2482.2,3.61072]
[1728308875239,0.71047019,2482.4,2482.2,3.2078]
[1728308875533,1.11338019,2482.3,2482.0,0.40295]
[1728308875737,0.71047019,2482.1,2481.9,3.2078]
[1728308876035,0.71047019,2482.0,2481.9,3.2078]
[1728308876240,0.71047019,2482.0,2481.9,3.61077]
[1728308876846,0.71047019,2482.0,2481.9,3.2078]
[1728308877041,0.71047019,2482.0,2481.6,7.0878]
[1728308877243,0.71047019,2481.9,2481.8,0.40298]
[1728308877445,0.40296,2482.0,2481.8,0.40298]
[1728308877446,1.11343019,2482.0,2481.8,0.40298]
[1728308877646,0.71047019,2481.9,2481.6,7.0878]
[1728308877834,0.71047019,2481.9,2481.8,0.40299]
[1728308878041,3.5933,2482.6,2481.8,8.91705]
[1728308878236,0.71047019,2482.1,2482.0,0.40296]
[1728308878439,0.71047019,2482.1,2481.8,7.0878]
[1728308878440,0.71047019,2482.1,2481.8,3.2078]
[1728308878641,1.11344019,2481.9,2481.8,3.2078]
[1728308879245,0.40302,2481.7,2481.5,7.49083]
[1728308879446,0.40302,2481.6,2481.5,3.2078]
[1728308879648,1.00742,2482.0,2481.5,3.2078]
[1728308879649,0.71047019,2481.8,2481.5,7.0878]
[1728308879846,0.71047019,2481.7,2481.6,0.40302]
[1728308880149,1.11349019,2481.6,2481.5,3.2078]
[1728308880641,0.71047019,2481.6,2481.5,3.61084]
[1728308881353,0.4163,2481.8,2481.6,0.40302]
[1728308881354,0.403,2481.8,2481.6,0.40302]
[1728308881546,0.71047019,2481.7,2481.6,0.40302]
[1728308882347,0.4163,2482.4,2481.6,10.0296]
[1728308882550,0.71047019,2482.2,2482.1,0.40294]
[1728308882749,3.5983,2482.9,2482.0,3.88]
[1728308882750,0.40278,2483.2,2482.8,0.40282]
[1728308882957,4.21462,2483.5,2482.7,3.88]
[1728308882958,0.8163,2483.4,2482.7,3.88]
[1728308883151,0.40275,2483.3,2482.9,3.6106]
[1728308883348,0.8163,2483.4,2482.9,3.2078]
[1728308883554,0.8163,2483.4,2483.0,0.40279]
[1728308883743,0.40275,2483.3,2482.9,3.2078]
[1728308884051,0.8163,2483.4,2483.3,0.40275]
[1728308884247,3.61048,2483.8,2483.3,0.40274]
[1728308884444,3.2078,2483.8,2483.2,3.2078]
[1728308884650,1.19813,2484.0,2483.3,3.88]
[1728308884848,0.7955,2484.0,2483.5,3.2078]
[1728308885047,0.40265,2483.9,2483.5,3.2078]
[1728308885253,0.7955,2484.0,2483.6,3.88]
[1728308885457,0.3937,2484.0,2483.2,3.2078]
[1728308885644,0.40269,2483.7,2483.2,3.61055]
[1728308885951,0.3937,2484.0,2482.3,3.63527]
[1728308885952,0.3937,2484.0,2483.5,3.2078]
[1728308886456,0.40273,2483.5,2483.0,0.40279]
[1728308886755,0.40271,2483.5,2483.1,0.40277]
[1728308886955,0.3937,2484.0,2483.1,3.88]
[1728308887250,0.3937,2484.0,2483.2,3.2078]
[1728308887549,0.3937,2484.0,2483.3,0.40274]
[1728308887757,0.3937,2484.0,2483.5,3.6105]
[1728308887758,0.79634,2484.0,2483.5,3.6105]
[1728308887960,0.3937,2484.0,2483.5,3.2078]
[1728308888147,0.40267,2483.8,2483.5,3.2078]
[1728308888348,0.79634,2484.0,2483.6,0.40269]
[1728308888553,0.79634,2484.0,2483.1,4.35]
[1728308888554,0.3937,2484.0,2483.9,0.40265]
[1728308888756,0.40261,2484.2,2483.8,0.40266]
[1728308889056,0.4018,2484.3,2483.5,3.2078]
[1728308889249,3.61038,2484.4,2484.0,0.40262]
[1728308889448,0.40262,2484.1,2483.8,3.2078]
[1728308889655,3.2078,2484.4,2483.8,3.2078]
[1728308889957,0.40261,2484.2,2483.9,0.40264]
[1728308890156,1.39544,2484.7,2483.8,3.2078]
[1728308890453,0.3891,2484.7,2483.8,3.2078]
[1728308890650,0.3891,2484.7,2484.1,3.2078]
[1728308891044,0.4025,2484.9,2484.4,3.2078]
[1728308891249,5.04198,2485.1,2484.4,3.2078]
[1728308891250,4.0358,2485.1,2484.4,3.2078]
[1728308891448,4.0358,2485.1,2484.1,3.2078]
[1728308891650,3.2078,2485.1,2484.4,3.2078]
[1728308892154,3.2078,2485.1,2483.6,0.203]
[1728308892155,3.2078,2485.1,2484.1,3.2078]
[1728308892359,0.3953,2485.3,2484.5,7.5578]
[1728308892748,0.4025,2484.9,2484.5,3.2078]
[1728308892948,1.00614,2485.1,2484.5,3.2078]
[1728308893252,1.00614,2485.1,2483.5,0.4085]
[1728308893253,3.2078,2484.7,2484.0,3.2078]
[1728308893547,1.00634,2484.6,2483.7,3.2078]
[1728308893748,1.00631,2484.7,2483.7,3.2078]
[1728308893953,1.00631,2484.7,2483.5,0.4085]
[1728308893954,1.00631,2484.7,2484.0,3.2078]
[1728308894148,0.3875,2484.6,2484.0,3.2078]
[1728308894448,0.3875,2484.6,2484.3,0.40258]
[1728308894652,0.40258,2484.3,2484.0,3.2078]
[1728308894847,0.3875,2484.6,2484.0,3.2078]
[1728308895247,0.40259,2484.3,2484.0,3.2078]
[1728308895458,0.79004,2484.6,2484.1,0.40262]
[1728308895658,0.40258,2484.3,2484.0,3.2078]
[1728308896058,0.40269,2483.7,2483.2,0.60575]
[1728308896249,3.2078,2484.1,2483.1,3.2078]
[1728308896557,3.2078,2484.1,2483.4,3.2078]
[1728308896758,1.00643,2484.4,2483.5,0.40271]
[1728308896759,1.00647,2484.3,2483.5,0.40271]
[1728308897055,1.00647,2484.3,2483.4,3.2078]
[1728308897451,0.40265,2483.9,2483.6,0.40269]
[1728308897657,3.2078,2484.4,2483.5,0.4027]
[1728308897857,1.00647,2484.3,2483.4,3.2078]
[1728308898057,3.2078,2484.4,2483.4,3.2078]
[1728308898254,0.40271,2483.5,2483.4,3.2078]
[1728308898557,0.40266,2483.9,2483.5,0.4027]
[1728308898758,3.2078,2484.1,2483.4,3.2078]
[1728308899059,0.40271,2483.5,2483.4,3.2078]
[1728308899248,0.40259,2484.3,2483.6,1.00672]
[1728308899450,0.40258,2484.4,2484.1,0.40261]
[1728308899756,0.40257,2484.4,2484.1,0.40262]
[1728308899953,0.40258,2484.4,2484.1,0.40261]
[1728308900160,0.40258,2484.4,2484.0,3.2078]
[1728308900355,3.2078,2484.5,2484.0,3.2078]
[1728308900551,0.40252,2484.7,2484.1,1.00655]
[1728308900754,3.61031,2484.8,2484.3,3.2078]
[1728308900958,3.2078,2484.8,2484.3,3.2078]
[1728308901257,0.82787,2485.1,2484.4,1.00643]
[1728308901456,0.82785,2485.1,2484.8,0.4025]
[1728308901647,0.82785,2485.1,2484.6,3.2078]
[1728308901648,0.4254,2485.1,2484.6,3.2078]
[1728308901854,0.4254,2485.1,2485.0,0.40247]
[1728308902050,0.4254,2485.1,2484.8,0.4025]
[1728308902250,0.40249,2484.9,2484.6,3.61032]
[1728308902549,0.4254,2485.1,2484.6,3.2078]
[1728308902860,0.82786,2485.1,2484.9,0.40248]
[1728308903056,3.02334098,2485.2,2484.6,3.2078]
[1728308903361,3.42579098,2485.2,2484.7,0.40252]
[1728308903559,0.40247,2485.1,2484.8,0.40249]
[1728308903759,0.40247,2485.1,2484.6,3.2078]
[1728308903760,0.40245,2485.1,2484.9,0.40248]
[1728308904058,0.40246,2485.1,2484.9,0.40248]
[1728308904451,0.40246,2485.1,2484.6,3.2078]
[1728308904452,3.42579098,2485.2,2485.0,0.40246]
[1728308904654,0.40246,2485.1,2484.9,0.40248]
[1728308904858,0.40246,2485.1,2484.9,0.40247]
[1728308905053,0.40246,2485.1,2484.6,3.2078]
[1728308905266,3.42579098,2485.2,2485.0,0.40246]
[1728308905466,45.15,2485.9,2484.6,4.21413]
[1728308905467,0.40231,2486.1,2485.6,0.40236]
[1728308905654,3.2078,2486.5,2485.6,7.5578]
[1728308905853,0.40228,2486.2,2485.8,0.40234]
[1728308906055,3.2078,2486.5,2485.6,7.5578]
[1728308906260,0.40227,2486.3,2485.8,0.40233]
[1728308906457,3.2078,2486.5,2485.6,7.5578]
[1728308906652,3.2078,2486.5,2485.9,3.2078]
[1728308906857,0.4023,2486.1,2485.4,1.05455252]
[1728308907257,0.40232,2486.0,2485.3,10.1941813]
[1728308907455,3.2078,2486.5,2485.3,8.61235252]
[1728308907659,0.40225,2486.4,2485.8,0.40233]
[1728308907857,3.2078,2486.5,2485.6,3.2078]
[1728308908167,0.40225,2486.4,2485.6,3.2078]
[1728308908355,3.2078,2486.5,2485.6,3.2078]
[1728308908758,3.2078,2486.5,2485.3,4.35]
[1728308908759,3.61004,2486.5,2486.0,0.4023]
[1728308908960,3.61004,2486.5,2485.9,3.61011]
[1728308909162,0.40224,2486.4,2485.9,0.40231]
[1728308909365,3.2078,2486.5,2485.9,3.2078]
[1728308909966,0.8457,2486.9,2486.0,0.4034]
[1728308909967,4.0535,2486.9,2486.0,0.4034]
[1728308910265,3.2078,2487.3,2486.2,3.2078]
[1728308910470,0.40216,2487.0,2486.6,0.40221]
[1728308910771,1.8851765,2486.6,2486.2,3.2078]
[1728308911266,0.40228,2486.2,2485.9,0.40231]
[1728308911459,1.8851765,2486.6,2486.3,0.40225]
[1728308911664,0.40223,2486.5,2486.2,0.40228]
[1728308911878,1.00548,2486.8,2485.8,3.2078]
[1728308911879,1.4828965,2486.2,2485.8,3.2078]
[1728308912365,0.40232,2486.0,2485.7,0.40235]
[1728308912665,0.40239,2485.6,2485.4,0.3888]
[1728308912868,1.0940965,2485.4,2485.2,3.5934]
[1728308913063,0.40242,2485.3,2485.2,3.2078]
[1728308913264,1.0940965,2485.4,2484.6,3.2078]
[1728308913663,2.1001365,2485.4,2484.6,3.2078]
[1728308913864,4.021,2485.6,2484.6,2.5161935]
[1728308914067,0.8132,2485.6,2484.9,3.2078]
[1728308914366,3.2078,2486.0,2485.1,4.35]
[1728308914678,3.61011,2486.0,2485.8,0.40234]
[1728308914856,1.00566,2486.3,2485.5,3.2078]
[1728308915071,0.4079,2486.4,2485.5,3.2078]
[1728308915257,0.40234,2485.9,2485.6,0.40236]
[1728308915462,0.40237,2485.7,2485.5,3.61018]
[1728308915659,0.40237,2485.6,2485.5,3.2078]
[1728308915972,3.2078,2486.2,2485.1,1.00614]
[1728308915973,3.2078,2485.9,2485.1,3.2078]
[1728308916267,3.2078,2485.6,2484.5,3.8348]
[1728308916571,0.40249,2484.9,2484.7,0.40251]
[1728308916762,1.00602,2485.4,2484.5,3.6318]
[1728308916959,3.2078,2485.1,2484.5,0.424]
[1728308917168,3.2078,2485.1,2484.0,4.35]
[1728308917574,4.21396,2485.1,2484.7,0.40251]
[1728308917761,3.2078,2485.4,2484.6,1.00634]
[1728308917960,1.00592,2485.7,2485.3,3.2078]
[1728308918265,0.40236,2485.7,2485.4,0.40241]
[1728308918459,0.40243,2485.3,2484.8,0.4027]
[1728308918665,3.2078,2485.6,2484.8,0.4027]
[1728308918860,3.2078,2485.6,2484.6,3.2078]
[1728308919072,0.40235,2485.8,2485.6,0.40236]
[1728308919265,3.2078,2485.9,2485.4,0.4024]
[1728308919466,0.40234,2485.8,2485.5,0.40238]
[1728308919771,0.40231,2486.0,2485.7,0.40235]
[1728308919964,4.21352,2486.2,2485.6,0.40236]
[1728308920159,3.61015,2485.8,2485.5,0.40239]
[1728308920367,1.0058,2486.0,2485.4,0.40239]
[1728308920668,3.2078,2486.2,2485.2,3.626]
[1728308920865,1.00578,2486.0,2485.2,3.2078]
[1728308921068,0.40242,2485.4,2485.2,3.2078]
[1728308921382,0.40242,2485.3,2485.0,0.40246]
[1728308921566,3.2078,2485.6,2484.7,3.2078]
[1728308921963,1.00602,2485.4,2484.7,3.2078]
[1728308922271,3.2078,2485.3,2484.7,3.2078]
[1728308922464,0.40256,2484.5,2484.2,0.40259]
[1728308922667,0.40256,2484.5,2483.5,3.2078]
[1728308922668,1.0063,2484.7,2483.7,1.00668]
[1728308922866,1.00634,2484.6,2484.2,0.40259]
[1728308923068,0.40256,2484.5,2484.2,0.40259]
[1728308923282,0.4026,2484.2,2483.8,0.40266]
[1728308923467,0.40257,2484.4,2483.6,0.409]
[1728308923661,3.6274,2484.7,2483.6,3.6168]
[1728308923867,0.40254,2484.6,2484.0,0.40263]
[1728308924079,0.40256,2484.5,2484.0,0.40263]
[1728308924279,44.4274,2484.7,2483.6,3.6168]
[1728308924467,0.40254,2484.6,2483.9,3.2078]
[1728308924773,3.6274,2484.7,2483.8,7.5578]
[1728308924964,1.40887,2484.6,2483.8,0.40266]
[1728308925164,3.6274,2484.7,2483.6,0.409]
[1728308925370,1.00635,2484.6,2483.6,0.409]
[1728308925566,1.00635,2484.6,2483.5,4.35]
[1728308925567,1.00638,2484.5,2483.5,4.35]
[1728308925769,1.00647,2484.3,2483.2,3.2078]
[1728308925974,0.40267,2483.8,2483.4,0.40272]
[1728308926475,0.4027,2483.6,2483.2,3.2078]
[1728308926768,0.40271,2483.5,2483.2,0.40276]
[1728308926967,0.40277,2483.2,2482.7,0.4215]
[1728308927170,3.2078,2483.5,2482.5,3.2078]
[1728308927372,1.00687,2483.3,2482.5,3.2078]
[1728308927565,4.21462,2483.5,2482.5,3.2078]
[1728308927969,3.2078,2483.5,2482.5,3.2078]
[1728308928175,0.40282,2482.9,2482.6,0.40285]
[1728308928376,0.8281,2483.7,2482.1,1.44195252]
[1728308928377,3.2078,2482.8,2482.2,3.2078]
[1728308928580,0.40286,2482.6,2482.3,0.4029]
[1728308928870,0.40286,2482.6,2482.2,3.2078]
[1728308928871,3.2078,2482.8,2482.2,3.61071]
[1728308929071,0.40288,2482.5,2482.2,3.61071]
[1728308929465,0.40287,2482.6,2482.2,3.61071]
[1728308929782,0.40287,2482.6,2482.3,0.40291]
[1728308930276,0.40285,2482.7,2482.4,0.40289]
[1728308930477,3.2078,2482.8,2482.2,3.2078]
[1728308930671,3.2078,2482.8,2482.6,0.40284]
[1728308930974,3.61063,2482.8,2482.5,0.40287]
[1728308931276,3.2078,2482.8,2482.6,0.40285]
[1728308931464,4.21468,2483.3,2482.7,0.40284]
[1728308931666,4.21468,2483.3,2482.3,4.028]
[1728308931667,3.2078,2483.3,2482.6,0.40285]
[1728308931877,0.40282,2482.9,2482.6,0.40285]
[1728308932077,3.2078,2483.3,2482.4,3.2078]
[1728308932269,0.40277,2483.2,2482.9,0.40281]
[1728308932464,3.61055,2483.3,2483.0,0.40279]
[1728308932671,3.61055,2483.3,2482.9,0.4028]
[1728308933576,3.2078,2483.3,2482.7,3.2078]
[1728308933875,3.2078,2483.3,2482.9,0.4028]
[1728308934072,3.2078,2483.3,2482.7,3.2078]
[1728308934274,0.4027,2483.6,2483.0,3.2078]
[1728308934471,3.2078,2483.8,2483.0,8.56477]
[1728308934472,3.61047,2483.8,2483.0,8.56477]
[1728308934772,3.61047,2483.8,2483.5,0.40271]
[1728308935078,3.2078,2484.1,2483.1,1.00695]
[1728308935376,3.2078,2484.1,2483.3,7.5578]
[1728308935564,0.40264,2484.0,2483.7,0.40267]
[1728308935767,3.2078,2484.1,2483.3,7.5578]
[1728308936075,0.40264,2484.0,2483.8,0.40266]
[1728308936276,0.4137,2484.3,2483.3,8.56464]
[1728308936475,0.40261,2484.2,2483.9,0.40264]
[1728308936977,3.6289,2484.5,2483.7,3.2078]
[1728308936978,3.2078,2484.5,2483.7,3.2078]
[1728308937181,1.00643,2484.4,2483.8,0.40265]
[1728308937368,3.2078,2484.5,2483.8,0.40265]
[1728308937673,3.2078,2484.2,2483.7,3.61047]
[1728308937976,1.00672,2483.7,2483.1,3.2078]
[1728308938278,1.00672,2483.7,2482.6,6.41170252]
[1728308938279,0.40276,2483.2,2483.0,0.40279]
[1728308938571,0.40278,2483.1,2482.8,3.61062]
[1728308938765,3.2078,2483.3,2482.5,3.2078]
[1728308938967,1.00679,2483.5,2482.5,3.2078]
[1728308939277,0.40278,2483.1,2482.8,0.40281]
[1728308939477,0.4028,2483.0,2482.7,0.40283]
[1728308939771,0.40282,2482.9,2482.7,0.40284]
[1728308940078,3.2078,2483.2,2482.5,3.2078]
[1728308940275,3.2078,2483.2,2482.5,3.61067]
[1728308940276,1.00702,2483.0,2482.5,3.61067]
[1728308940469,0.40281,2482.9,2482.5,3.2078]
[1728308940673,4.62463,2483.2,2482.5,3.2078]
[1728308940876,3.61057,2483.2,2482.7,0.40284]
[1728308941074,1.00671,2483.7,2482.5,3.2078]
[1728308941266,1.00675,2483.6,2482.5,3.2078]
[1728308941471,0.40277,2483.2,2483.0,0.40279]
[1728308941979,4.62438,2483.8,2483.1,4.0272]
[1728308942280,3.6177,2483.8,2483.6,0.40269]
[1728308942476,0.40268,2483.7,2483.4,0.40272]
[1728308942778,0.40269,2483.7,2483.2,0.4024]
[1728308943078,4.02038,2483.8,2483.5,0.4027]
[1728308943274,0.40269,2483.7,2483.5,0.4027]
[1728308943470,3.6177,2483.8,2483.2,0.4024]
[1728308943677,3.6177,2483.8,2483.2,0.80516]
[1728308943678,0.40274,2483.4,2483.2,0.80516]
[1728308943976,3.6177,2483.8,2483.1,3.2078]
[1728308944179,0.40278,2483.1,2482.9,0.4028]
[1728308944377,3.6177,2483.8,2482.8,0.4237]
[1728308944378,3.2078,2483.5,2482.8,0.40282]
[1728308944684,3.2078,2483.5,2482.6,3.6102]
[1728308944685,0.40278,2483.1,2482.9,0.4028]
[1728308944868,1.00685,2483.4,2482.6,3.6102]
[1728308945182,1.00691,2483.3,2482.8,0.40283]
[1728308945379,3.2078,2483.5,2483.0,0.40279]
[1728308945380,0.40277,2483.2,2483.0,0.40279]
[1728308945579,0.4028,2483.0,2482.7,0.40284]
[1728308945880,0.40278,2483.1,2482.9,0.4028]
[1728308946082,1.00689,2483.3,2482.6,3.6102]
[1728308946382,3.2078,2483.5,2482.6,3.6102]
[1728308946383,1.00691,2483.2,2482.6,3.6102]
[1728308946570,0.40276,2483.3,2483.1,0.40277]
[1728308946770,3.2078,2483.5,2482.7,1.00711]
[1728308946975,1.00683,2483.4,2482.6,4.61734]
[1728308947174,0.40277,2483.2,2483.0,0.40279]
[1728308947687,3.61052,2483.5,2483.4,0.40273]
[1728308947882,3.2078,2484.1,2483.4,4.0264]
[1728308948085,2.01235,2485.1,2483.4,4.0264]
[1728308948086,1.00649,2484.3,2483.4,1.00683]
[1728308948288,0.40266,2483.9,2483.7,0.40267]
[1728308948582,1.00649,2484.3,2483.3,3.2078]
[1728308948793,0.40262,2484.1,2483.9,0.40264]
[1728308948976,3.2078,2484.4,2483.6,7.5578]
[1728308949173,3.2078,2484.8,2484.3,1.00647]
[1728308949375,3.2078,2484.8,2484.6,0.40253]
[1728308949790,3.2078,2484.8,2484.2,3.2078]
[1728308950089,0.40258,2484.3,2484.2,3.2078]
[1728308950286,1.0063,2484.7,2483.9,3.2078]
[1728308950483,4.7422,2484.9,2483.6,0.40269]
[1728308950484,3.2078,2484.5,2483.6,0.40269]
[1728308950683,0.40267,2483.8,2483.6,0.40269]
[1728308950979,3.6263,2484.5,2483.5,3.2078]
[1728308951178,0.40262,2484.1,2483.9,0.40265]
[1728308951380,3.2078,2484.2,2483.5,3.2078]
[1728308951582,0.40263,2484.1,2483.5,3.2078]
[1728308951777,3.2078,2484.2,2483.5,3.2078]
[1728308951978,0.40262,2484.1,2483.9,0.40264]
[1728308952185,0.40264,2484.0,2483.8,0.40266]
[1728308952381,3.2078,2484.2,2483.8,0.40265]
[1728308952382,0.40262,2484.1,2483.8,0.40265]
[1728308952582,3.2078,2484.2,2483.5,3.2078]
[1728308952981,0.40262,2484.1,2483.6,1.40945]
[1728308953184,0.40262,2484.1,2484.0,0.40263]
[1728308953488,0.40262,2484.1,2483.9,0.40265]
[1728308953684,1.42491,2484.5,2483.6,1.00674]
[1728308953887,0.40261,2484.2,2484.1,0.40262]
[1728308954080,0.40259,2484.3,2483.8,1.00667]
[1728308954285,0.40259,2484.3,2483.6,1.00674]
[1728308954286,0.40259,2484.3,2484.1,0.40261]
[1728308954588,0.4026,2484.2,2484.1,0.40261]
[1728308954887,1.4249,2484.5,2483.7,1.00669]
[1728308955083,0.4185,2484.5,2483.4,0.419]
[1728308955386,1.00656,2484.1,2483.4,0.419]
[1728308955586,0.40271,2483.5,2483.4,0.82172]
[1728308955786,1.00663,2483.9,2483.2,3.2078]
[1728308955978,0.40272,2483.5,2483.3,0.40273]
[1728308956177,3.5945,2484.0,2483.1,0.40277]
[1728308956379,1.40945,2483.6,2483.1,0.40277]
[1728308956584,4.21453,2483.7,2482.8,3.6015]
[1728308956585,1.0068,2483.5,2482.8,3.6015]
[1728308956783,0.4028,2483.0,2482.9,0.4028]
[1728308956987,0.4048,2483.4,2482.8,3.6015]
[1728308957185,0.40276,2483.2,2482.8,3.6015]
[1728308957382,0.40279,2483.1,2482.9,0.4028]
[1728308957583,3.2078,2483.7,2482.9,4.35]
[1728308957786,3.2078,2484.0,2483.9,0.40265]
[1728308957986,0.4048,2484.3,2483.7,4.35]
[1728308958182,0.4048,2484.3,2484.2,0.4026]
[1728308958493,3.61032,2484.7,2484.3,0.40257]
[1728308958686,3.61032,2484.7,2484.0,3.2078]
[1728308958687,3.2078,2484.7,2484.4,0.40256]
[1728308958985,3.2078,2484.7,2484.5,0.40255]
[1728308959292,3.2078,2484.7,2484.6,0.40253]
[1728308959889,0.4048,2485.0,2484.6,4.0248]
[1728308960086,3.2078,2485.4,2484.4,4.35]
[1728308960287,3.2078,2485.4,2485.0,0.40247]
[1728308960588,0.7913,2485.5,2484.7,4.35]
[1728308960589,0.3889,2485.5,2484.7,4.35]
[1728308960781,0.3889,2485.5,2485.3,0.40242]
[1728308960987,0.3889,2485.5,2484.9,3.2078]
[1728308960988,0.3889,2485.5,2485.2,0.40243]
[1728308961287,0.3889,2485.5,2485.3,0.40241]
[1728308961491,0.3889,2485.5,2484.9,3.2078]
[1728308961690,3.2078,2485.7,2485.5,0.40238]
[1728308961894,3.2078,2485.7,2485.6,0.40237]
[1728308962083,3.2078,2485.7,2485.2,3.2078]
[1728308962391,3.2078,2485.7,2485.6,0.40237]
[1728308962583,3.2078,2485.7,2485.2,3.2078]
[1728308962584,0.3889,2486.0,2485.8,0.40233]
[1728308962781,0.3889,2486.0,2485.3,0.8084]
[1728308962988,3.61003,2486.5,2485.6,1.40831]
[1728308963190,3.2078,2486.5,2485.5,3.2078]
[1728308963390,3.2078,2486.5,2485.8,3.2078]
[1728308963590,0.40228,2486.2,2485.9,0.40232]
[1728308963785,3.2078,2486.5,2485.8,3.61013]
[1728308963986,3.2078,2486.5,2485.8,3.2078]
[1728308964184,3.2078,2486.2,2485.3,0.8084]
[1728308964389,0.40235,2485.8,2485.5,0.40238]
[1728308964789,0.40234,2485.9,2485.6,0.40237]
[1728308964988,0.3836,2486.1,2485.3,0.8084]
[1728308965296,0.3836,2486.1,2485.4,3.2078]
[1728308965492,0.3836,2486.1,2485.5,1.00598]
[1728308965791,3.2078,2486.2,2486.1,0.40229]
[1728308965993,3.6146,2486.7,2486.0,4.35]
[1728308966191,3.2078,2486.4,2486.3,0.40226]
[1728308966381,1.00528,2487.3,2486.1,0.40229]
[1728308966382,0.40217,2486.9,2486.1,0.40229]
[1728308966585,3.2078,2487.1,2486.7,0.40219]
[1728308966586,1.18426258,2487.0,2486.7,0.40219]
[1728308966783,0.78210258,2487.0,2486.6,0.4022]
[1728308966995,0.78210258,2487.0,2486.3,3.2078]
[1728308967191,3.2078,2487.1,2486.3,3.2078]
[1728308967386,0.40223,2486.6,2486.2,0.80967]
[1728308967587,1.78720585,2487.0,2485.9,3.2078]
[1728308967792,3.60999,2486.8,2486.4,0.40223]
[1728308967985,3.2078,2486.8,2486.0,4.35]
[1728308968283,3.2078,2486.8,2485.9,3.2078]
[1728308968487,3.2078,2486.8,2486.4,0.40223]
[1728308968691,0.4022,2486.7,2486.4,0.40223]
[1728308968893,0.40222,2486.6,2486.2,0.40226]
[1728308969092,0.40222,2486.6,2485.9,3.2078]
[1728308969093,4.21326,2486.8,2485.9,3.2078]
[1728308969293,0.40223,2486.5,2486.0,0.40231]
[1728308969487,0.3903,2486.7,2485.9,3.61012]
[1728308969688,0.3903,2486.7,2485.6,0.7914]
[1728308969689,0.4023,2486.1,2485.6,0.7914]
[1728308969884,0.40234,2485.9,2485.6,0.4074]
[1728308970088,0.40228,2486.2,2485.8,0.40233]
[1728308970297,0.40231,2486.0,2485.6,0.80976]
[1728308970485,0.40233,2485.9,2485.6,0.4074]
[1728308970885,3.2078,2486.2,2485.2,3.2078]
[1728308971192,0.40233,2485.9,2485.5,0.40238]
[1728308971394,0.3903,2486.1,2485.2,3.2078]
[1728308971584,0.3903,2486.1,2485.3,0.40241]
[1728308971585,1.00578,2486.0,2485.3,0.40241]
[1728308971791,0.4024,2485.5,2485.1,0.40244]
[1728308971990,3.2078,2485.9,2484.9,3.5973]
[1728308972695,0.40239,2485.6,2485.3,0.40242]
[1728308972896,4.21364,2485.9,2484.9,3.5973]
[1728308973097,0.40234,2485.8,2484.9,3.5973]
[1728308973292,3.2078,2485.6,2485.4,0.4024]
[1728308973487,3.2078,2485.6,2485.0,1.00618]
[1728308973488,3.2078,2485.6,2484.9,3.5973]